bitfinex/quotes_BTCUSD_20250525
["timestamp","ask_amount","ask_price","bid_price","bid_amount"]
[1748141336671,0.13058311,107500.0,107490.0,0.63110387]
[1748141336884,0.13058311,107500.0,107490.0,0.90942387]
[1748141337504,0.13058311,107500.0,107490.0,1.82354387]
[1748141338916,0.13058311,107500.0,107490.0,1.26690387]
[1748141341020,0.13058311,107500.0,107490.0,0.63110387]
[1748141341244,0.12774556,107500.0,107490.0,0.02844687]
[1748141341457,0.12774556,107500.0,107490.0,0.30676687]
[1748141342007,0.12774556,107500.0,107490.0,0.30376687]
[1748141342397,0.12774556,107500.0,107490.0,0.30176687]
[1748141343188,0.12774556,107500.0,107490.0,0.30276687]
[1748141343594,0.12774556,107500.0,107490.0,0.02444687]
[1748141343804,0.44595474,107500.0,107490.0,0.00939762]
[1748141344012,0.44695474,107500.0,107490.0,0.00050384]
[1748141344236,0.44695474,107500.0,107490.0,0.27886384]
[1748141345516,0.78695474,107500.0,107490.0,0.27886384]
[1748141345729,0.00461619,107460.0,107450.0,0.01511331]
[1748141345923,0.00461619,107460.0,107450.0,2.55610431]
[1748141346803,0.00461619,107460.0,107450.0,3.16852531]
[1748141347001,0.00461619,107460.0,107450.0,3.17361904]
[1748141347235,0.00561619,107460.0,107450.0,3.11798401]
[1748141347574,0.00561619,107460.0,107450.0,4.07092401]
[1748141348202,0.00561619,107460.0,107450.0,3.51420401]
[1748141348409,0.00461619,107460.0,107450.0,3.50820401]
[1748141348547,0.00461619,107460.0,107450.0,3.50320401]
[1748141348749,0.00461619,107460.0,107450.0,3.50720401]
[1748141348966,0.00461619,107460.0,107450.0,3.51120401]
[1748141349586,0.00461619,107460.0,107450.0,3.23284401]
[1748141349791,0.00461619,107460.0,107450.0,3.51120401]
[1748141350200,0.00461619,107460.0,107450.0,3.52546944]
[1748141351582,0.00461619,107460.0,107450.0,3.16794944]
[1748141352408,0.00461619,107460.0,107450.0,2.88958944]
[1748141352615,0.00461619,107460.0,107450.0,2.59271244]
[1748141353119,0.04171619,107460.0,107450.0,0.84959544]
[1748141353330,0.04171619,107460.0,107450.0,0.67905244]
[1748141354649,0.04171619,107460.0,107450.0,0.39665244]
[1748141354860,0.04171619,107460.0,107450.0,0.67805244]
[1748141355072,0.04171619,107460.0,107450.0,0.63968747]
[1748141355304,0.04171619,107460.0,107450.0,0.63568747]
[1748141355720,0.04171619,107460.0,107450.0,0.63768747]
[1748141355930,0.02271619,107460.0,107450.0,0.63768747]
[1748141356136,0.00461619,107460.0,107450.0,0.63768747]
[1748141357648,0.00461619,107460.0,107450.0,1.55176747]
[1748141358784,0.00461619,107460.0,107450.0,0.99500747]
[1748141358986,0.00461619,107460.0,107450.0,0.63768747]
[1748141360878,0.02291619,107460.0,107450.0,0.63768747]
[1748141361506,0.00461619,107460.0,107450.0,0.63768747]
[1748141361929,0.00177864,107460.0,107450.0,0.63768747]
[1748141362175,0.00461619,107460.0,107450.0,0.63768747]
[1748141362632,0.4139269,107490.0,107450.0,0.63768747]
[1748141362633,0.03807864,107490.0,107470.0,0.0185]
[1748141362844,0.00283755,107480.0,107470.0,0.0371]
[1748141363050,0.00283755,107480.0,107470.0,0.2969]
[1748141363274,0.00283755,107480.0,107470.0,2.257993]
[1748141363460,0.00283755,107480.0,107470.0,2.23944031]
[1748141363660,0.00283755,107480.0,107470.0,2.22349831]
[1748141363887,0.03807864,107490.0,107470.0,2.22349831]
[1748141364094,0.03807864,107490.0,107480.0,1.096302]
[1748141364535,0.03907864,107490.0,107480.0,1.096302]
[1748141364732,0.03907864,107490.0,107480.0,0.659093]
[1748141364960,0.03807864,107490.0,107480.0,0.490522]
[1748141365117,0.03807864,107490.0,107480.0,0.24788846]
[1748141365319,0.00283755,107480.0,107470.0,0.30578431]
[1748141365524,0.00283755,107480.0,107470.0,1.220757]
[1748141366545,0.04007864,107490.0,107470.0,1.220757]
[1748141366752,0.03807864,107490.0,107480.0,1.008608]
[1748141367485,0.03807864,107490.0,107480.0,1.565368]
[1748141367684,0.03807864,107490.0,107480.0,1.866268]
[1748141367826,0.03807864,107490.0,107480.0,1.87514127]
[1748141368034,0.03807864,107490.0,107480.0,1.31838127]
[1748141368239,0.04007864,107490.0,107480.0,1.31838127]
[1748141368670,0.04207864,107490.0,107480.0,1.31838127]
[1748141369187,0.04207864,107490.0,107480.0,0.96102127]
[1748141375919,0.02407864,107490.0,107480.0,0.96102127]
[1748141376304,0.00577864,107490.0,107480.0,0.96102127]
[1748141376750,0.12844556,107490.0,107480.0,0.00887327]
[1748141376915,0.12844556,107490.0,107480.0,0.28727327]
[1748141377534,0.12844556,107490.0,107480.0,1.20131327]
[1748141378398,0.12844556,107490.0,107480.0,1.19244]
[1748141379004,0.12844556,107490.0,107480.0,0.63568]
[1748141379673,0.04191619,107470.0,107460.0,0.01108941]
[1748141379848,0.04191619,107470.0,107460.0,2.89711541]
[1748141380055,0.04191619,107470.0,107460.0,2.61875541]
[1748141380233,0.04191619,107470.0,107460.0,2.86781741]
[1748141380616,0.04191619,107470.0,107460.0,2.58945741]
[1748141380815,0.04191619,107470.0,107460.0,1.40158841]
[1748141381026,0.04191619,107470.0,107460.0,0.28948941]
[1748141381227,0.04191619,107470.0,107460.0,0.29048941]
[1748141381429,0.03907864,107470.0,107460.0,0.28827764]
[1748141381963,0.03907864,107470.0,107460.0,0.28927764]
[1748141382378,0.12684556,107470.0,107460.0,0.46232264]
[1748141382592,0.12684556,107470.0,107460.0,0.45814264]
[1748141382797,0.12684556,107470.0,107460.0,0.01087764]
[1748141383005,0.12684556,107470.0,107460.0,0.46282064]
[1748141383643,0.0373,107470.0,107460.0,0.46282064]
[1748141383853,0.02311619,107470.0,107460.0,0.46282064]
[1748141384068,0.02027864,107470.0,107460.0,0.46282064]
[1748141384288,0.00177864,107470.0,107460.0,0.46282064]
[1748141384503,0.02117864,107470.0,107460.0,0.46282064]
[1748141385124,0.02401619,107470.0,107460.0,0.46282064]
[1748141385609,0.00461619,107470.0,107460.0,0.46282064]
[1748141387702,0.00461619,107470.0,107460.0,0.81990064]
[1748141388108,0.02401619,107470.0,107460.0,0.81990064]
[1748141388701,0.02117864,107470.0,107460.0,0.81990064]
[1748141388928,0.02401619,107470.0,107460.0,0.81990064]
[1748141389487,0.02117864,107470.0,107460.0,0.81990064]
[1748141389693,0.02401619,107470.0,107460.0,0.81990064]
[1748141390376,0.02401619,107470.0,107460.0,0.811023]
[1748141390811,0.0188,107480.0,107460.0,0.58158856]
[1748141390812,0.02123755,107480.0,107460.0,0.58158856]
[1748141391020,0.00283755,107480.0,107470.0,3.2787068]
[1748141391210,0.03817864,107490.0,107470.0,3.147855]
[1748141391455,0.03817864,107490.0,107480.0,0.2784]
[1748141391659,0.03817864,107490.0,107480.0,1.415962]
[1748141394031,0.04017864,107490.0,107480.0,1.415962]
[1748141394234,0.04217864,107490.0,107480.0,1.415962]
[1748141396411,0.02417864,107490.0,107480.0,1.415962]
[1748141397636,0.00577864,107490.0,107480.0,1.773042]
[1748141398436,0.00577864,107490.0,107480.0,0.87766674]
[1748141398643,0.00861619,107490.0,107480.0,0.87766674]
[1748141399198,0.004,107490.0,107480.0,0.87766674]
[1748141399712,0.004,107490.0,107480.0,1.15606674]
[1748141400599,0.00683755,107490.0,107480.0,1.15606674]
[1748141400805,0.004,107490.0,107480.0,1.15606674]
[1748141401799,0.00683755,107490.0,107480.0,1.15606674]
[1748141402562,0.004,107490.0,107480.0,1.15606674]
[1748141403869,0.004,107490.0,107480.0,0.9981411]
[1748141404276,0.00683755,107490.0,107480.0,0.9981411]
[1748141404499,0.004,107490.0,107480.0,0.9981411]
[1748141405823,0.00683755,107490.0,107480.0,0.9981411]
[1748141406182,0.004,107490.0,107480.0,0.9981411]
[1748141406588,0.00683755,107490.0,107480.0,0.9981411]
[1748141407428,0.02603755,107490.0,107480.0,0.7197411]
[1748141407644,0.0422,107490.0,107480.0,1.3551411]
[1748141408296,0.0422,107490.0,107480.0,0.7197411]
[1748141408515,0.0192,107470.0,107460.0,0.0014]
[1748141408720,0.03997864,107470.0,107460.0,1.226634]
[1748141408899,0.03997864,107470.0,107460.0,1.215289]
[1748141409153,0.03997864,107470.0,107460.0,0.862738]
[1748141409154,0.04281619,107470.0,107460.0,0.862738]
[1748141409366,0.04281619,107470.0,107460.0,0.584378]
[1748141409581,0.00283755,107470.0,107460.0,0.88655279]
[1748141409965,0.00283755,107470.0,107460.0,0.88755279]
[1748141410321,0.00283755,107470.0,107460.0,0.88855279]
[1748141410937,0.00283755,107470.0,107460.0,0.864738]
[1748141411708,0.04221619,107480.0,107460.0,0.864738]
[1748141411909,0.00283755,107470.0,107460.0,0.62176]
[1748141412292,0.04221619,107480.0,107460.0,3.480321]
[1748141412459,0.00283755,107470.0,107460.0,3.480321]
[1748141412661,0.00283755,107470.0,107460.0,3.479321]
[1748141413759,0.04221619,107480.0,107460.0,3.479321]
[1748141413979,0.02047864,107490.0,107470.0,1.723848]
[1748141414185,0.02331619,107490.0,107470.0,1.81339356]
[1748141414390,0.00283755,107480.0,107470.0,0.08954556]
[1748141414604,0.0185,107500.0,107470.0,2.98843218]
[1748141414801,0.0185,107500.0,107480.0,2.858561]
[1748141415109,0.02027864,107500.0,107490.0,0.28068545]
[1748141415313,0.02027864,107500.0,107490.0,1.04324]
[1748141415544,0.02027864,107500.0,107490.0,1.043225]
[1748141415938,0.02027864,107500.0,107490.0,0.957112]
[1748141416777,0.02327864,107500.0,107490.0,0.957112]
[1748141416929,0.04247864,107500.0,107490.0,0.957112]
[1748141417130,0.04547864,107500.0,107490.0,0.957112]
[1748141417515,0.04547864,107500.0,107490.0,1.489467]
[1748141417740,0.00461619,107480.0,107460.0,0.038]
[1748141417944,0.00461619,107480.0,107470.0,1.953914]
[1748141417945,0.04231619,107480.0,107470.0,1.953914]
[1748141420304,0.04331619,107480.0,107470.0,1.597194]
[1748141421679,0.04331619,107480.0,107470.0,1.318834]
[1748141421890,0.04331619,107480.0,107470.0,1.597194]
[1748141422095,0.04331619,107480.0,107470.0,1.438622]
[1748141422242,0.04331619,107480.0,107470.0,1.005912]
[1748141425161,0.04331619,107480.0,107470.0,0.727552]
[1748141425336,0.04331619,107480.0,107470.0,1.005912]
[1748141426664,0.04331619,107480.0,107470.0,0.990145]
[1748141427215,0.04331619,107480.0,107470.0,0.371785]
[1748141427415,0.04153755,107480.0,107470.0,0.599028]
[1748141427704,0.04153755,107480.0,107470.0,1.356588]
[1748141429299,0.04153755,107480.0,107470.0,0.521508]
[1748141429505,0.0387,107480.0,107470.0,0.799868]
[1748141431456,0.0387,107480.0,107470.0,0.443148]
[1748141435794,0.04153755,107480.0,107470.0,1.031742]
[1748141435932,0.0387,107480.0,107470.0,1.031742]
[1748141436345,0.0387,107480.0,107470.0,0.753382]
[1748141436554,0.02341619,107470.0,107460.0,2.858561]
[1748141436758,0.02341619,107470.0,107460.0,3.136921]
[1748141437344,0.09004878,107500.0,107460.0,3.26406656]
[1748141437545,0.09004878,107500.0,107470.0,3.5574215]
[1748141437748,0.09004878,107500.0,107480.0,1.321302]
[1748141437956,0.09004878,107500.0,107480.0,0.2784]
[1748141438157,0.00050322,107500.0,107490.0,0.441187]
[1748141438364,0.00050322,107500.0,107490.0,0.395402]
[1748141438791,0.00050322,107500.0,107490.0,0.277531]
[1748141439290,0.00050322,107500.0,107490.0,0.265696]
[1748141439585,0.00050322,107500.0,107490.0,0.251775]
[1748141440309,0.00650322,107500.0,107490.0,0.251775]
[1748141440485,0.04540322,107500.0,107490.0,0.251775]
[1748141447512,0.04540322,107500.0,107490.0,1.164895]
[1748141447959,0.04540322,107500.0,107490.0,0.608175]
[1748141448595,0.04540322,107500.0,107490.0,0.251775]
[1748141448804,0.00650322,107500.0,107490.0,0.251775]
[1748141449852,0.00650322,107500.0,107490.0,0.03152218]
[1748141450073,0.00650322,107500.0,107480.0,0.3153]
[1748141450281,0.00650322,107500.0,107490.0,0.983564]
[1748141450466,0.00650322,107500.0,107490.0,0.795187]
[1748141450880,0.00350322,107500.0,107490.0,0.795187]
[1748141451093,0.00050322,107500.0,107490.0,0.795187]
[1748141451319,0.00250322,107500.0,107490.0,0.795187]
[1748141451512,0.00250322,107500.0,107490.0,0.700133]
[1748141451893,0.00450322,107500.0,107490.0,0.700133]
[1748141452517,0.00250322,107500.0,107490.0,0.662939]
[1748141452952,0.00350322,107500.0,107490.0,0.662939]
[1748141453235,0.00650322,107500.0,107490.0,0.662939]
[1748141454374,0.00650322,107500.0,107490.0,0.700039]
[1748141454582,0.00650322,107500.0,107490.0,0.78958456]
[1748141457391,0.00650322,107500.0,107490.0,1.12958456]
[1748141457598,0.00650322,107500.0,107490.0,2.04262456]
[1748141458644,0.00350322,107500.0,107490.0,1.48594456]
[1748141458863,0.00050322,107500.0,107490.0,1.48594456]
[1748141459459,0.00050322,107500.0,107490.0,1.48694456]
[1748141459940,0.00250322,107500.0,107490.0,1.13198456]
[1748141460162,0.036,107540.0,107510.0,0.0191]
[1748141460392,0.12526861,107550.0,107530.0,0.0381]
[1748141460660,0.10676861,107550.0,107540.0,1.46377147]
[1748141460875,0.10676861,107550.0,107540.0,1.461447]
[1748141461077,0.14276861,107550.0,107540.0,0.62170323]
[1748141462811,0.06884171,107550.0,107540.0,0.62170323]
[1748141463234,0.05134171,107550.0,107540.0,0.62170323]
[1748141463981,0.06884171,107550.0,107540.0,0.62170323]
[1748141464829,0.06884171,107550.0,107540.0,0.15321823]
[1748141465044,0.06884171,107550.0,107540.0,0.29238123]
[1748141465223,0.06884171,107550.0,107540.0,0.43554623]
[1748141465603,0.06884171,107550.0,107540.0,0.29238123]
[1748141465805,0.06884171,107550.0,107540.0,0.41807323]
[1748141466427,0.06884171,107550.0,107540.0,0.29238123]
[1748141466627,0.06884171,107550.0,107540.0,0.44517323]
[1748141466827,0.06884171,107550.0,107540.0,0.29238123]
[1748141467247,0.06884171,107550.0,107540.0,0.40858723]
[1748141467469,0.06884171,107550.0,107540.0,0.29238123]
[1748141467772,0.06884171,107550.0,107540.0,0.75095323]
[1748141468140,0.06884171,107550.0,107540.0,0.76486723]
[1748141469612,0.06884171,107550.0,107540.0,0.40858723]
[1748141470669,0.06884171,107550.0,107540.0,0.13030723]
[1748141470881,0.03284171,107550.0,107540.0,0.40858723]
[1748141471078,0.03284171,107550.0,107540.0,0.44638723]
[1748141472264,0.03284171,107550.0,107540.0,0.40858723]
[1748141473808,0.03284171,107550.0,107540.0,0.42688723]
[1748141474013,0.03284171,107550.0,107540.0,0.40858723]
[1748141477498,0.03284171,107550.0,107540.0,0.56438723]
[1748141477683,0.03284171,107550.0,107540.0,1.32098723]
[1748141478258,0.05104171,107550.0,107540.0,1.32098723]
[1748141478456,0.07034171,107550.0,107540.0,1.34450157]
[1748141478663,0.03755034,107550.0,107540.0,1.34450157]
[1748141479799,0.03755034,107550.0,107540.0,0.78806157]
[1748141481651,0.03755034,107550.0,107540.0,0.43210157]
[1748141484500,0.01825034,107550.0,107540.0,0.43210157]
[1748141487552,0.01825034,107550.0,107540.0,1.34446157]
[1748141487755,0.01825034,107550.0,107540.0,1.35334072]
[1748141489785,0.01825034,107550.0,107540.0,0.79690072]
[1748141491040,5.034e-05,107550.0,107540.0,0.44098072]
[1748141492079,5.034e-05,107550.0,107540.0,0.45207966]
[1748141492255,5.034e-05,107550.0,107540.0,0.49017966]
[1748141492821,5.034e-05,107550.0,107540.0,0.45207966]
[1748141493604,5.034e-05,107550.0,107540.0,0.49017966]
[1748141493815,5.034e-05,107550.0,107540.0,0.79357426]
[1748141494217,5.034e-05,107550.0,107540.0,0.75547426]
[1748141497475,5.034e-05,107550.0,107540.0,1.31187426]
[1748141497681,5.034e-05,107550.0,107540.0,1.66779426]
[1748141501382,5.034e-05,107550.0,107540.0,0.75547426]
[1748141502122,5.034e-05,107550.0,107540.0,0.74437532]
[1748141507552,5.034e-05,107550.0,107540.0,1.25577532]
[1748141509324,5.034e-05,107550.0,107540.0,0.74437532]
[1748141511299,5.034e-05,107550.0,107540.0,0.78147532]
[1748141511504,5.034e-05,107550.0,107540.0,1.11978365]
[1748141511921,5.034e-05,107550.0,107540.0,0.81638905]
[1748141512398,5.034e-05,107550.0,107540.0,0.79257426]
[1748141514256,5.034e-05,107550.0,107540.0,1.43596886]
[1748141514466,0.0372,107570.0,107560.0,0.3033946]
[1748141514668,0.0372,107570.0,107560.0,1.6373676]
[1748141514922,0.0181,107570.0,107560.0,1.6244556]
[1748141515124,0.01,107580.0,107560.0,2.0015556]
[1748141515329,0.01,107580.0,107570.0,2.54732227]
[1748141515330,0.01009368,107580.0,107570.0,2.54732227]
[1748141515561,0.01009368,107580.0,107570.0,2.5449986]
[1748141516339,0.01009368,107580.0,107570.0,2.59097775]
[1748141517315,0.01009368,107580.0,107570.0,2.59197775]
[1748141517542,0.01009368,107580.0,107570.0,3.50393775]
[1748141517750,0.01009368,107580.0,107570.0,3.48483775]
[1748141517959,0.01009368,107580.0,107570.0,3.46683775]
[1748141520747,0.01009368,107580.0,107570.0,2.55487775]
[1748141521764,0.01009368,107580.0,107570.0,2.00078275]
[1748141521989,0.02889368,107580.0,107570.0,1.27810275]
[1748141522427,0.02889368,107580.0,107570.0,1.55626275]
[1748141524435,0.01009368,107580.0,107570.0,1.55626275]
[1748141524646,0.01009368,107580.0,107570.0,1.57456275]
[1748141524857,0.01009368,107580.0,107570.0,1.55626275]
[1748141527401,0.01009368,107580.0,107570.0,1.27810275]
[1748141527604,0.01009368,107580.0,107570.0,2.46802275]
[1748141529302,0.01009368,107580.0,107570.0,1.91182275]
[1748141529518,0.01009368,107580.0,107570.0,1.55626275]
[1748141529734,0.01009368,107580.0,107570.0,1.55622275]
[1748141530793,0.01009368,107580.0,107570.0,1.27810275]
[1748141531013,0.01009368,107580.0,107570.0,1.55622275]
[1748141531248,0.01009368,107580.0,107570.0,1.31471873]
[1748141531459,0.01009368,107580.0,107570.0,0.93810275]
[1748141531669,0.02959368,107580.0,107570.0,1.21622275]
[1748141531814,0.04799368,107580.0,107570.0,1.21622275]
[1748141533414,0.04799368,107580.0,107570.0,0.93810275]
[1748141533626,0.04799368,107580.0,107570.0,0.00987915]
[1748141533627,0.47753924,107580.0,107570.0,0.00987915]
[1748141533836,0.47753924,107580.0,107570.0,0.28799915]
[1748141534039,0.47753924,107580.0,107570.0,0.27912]
[1748141534217,0.47753924,107580.0,107570.0,0.001]
[1748141534856,0.47753924,107580.0,107570.0,0.27912]
[1748141537559,0.47753924,107580.0,107570.0,0.63468]
[1748141538541,0.47753924,107580.0,107570.0,0.5825146]
[1748141539482,0.47753924,107580.0,107570.0,0.001]
[1748141539687,0.47753924,107580.0,107570.0,0.27912]
[1748141544805,0.47753924,107580.0,107570.0,0.5825146]
[1748141545007,0.38799368,107580.0,107570.0,0.5825146]
[1748141545871,0.36959368,107580.0,107570.0,0.5825146]
[1748141546073,0.36959368,107580.0,107570.0,1.1227836]
[1748141546288,0.36959368,107580.0,107570.0,0.9968146]
[1748141546475,0.36959368,107580.0,107570.0,0.9740266]
[1748141546708,0.35009368,107580.0,107570.0,0.9740266]
[1748141547222,0.36869368,107580.0,107570.0,0.9002436]
[1748141547559,0.38669368,107580.0,107570.0,1.8118836]
[1748141547759,0.38669368,107580.0,107570.0,1.2556036]
[1748141548590,0.38669368,107580.0,107570.0,1.2413516]
[1748141550251,0.35009368,107580.0,107570.0,0.8859916]
[1748141550925,0.35009368,107580.0,107570.0,0.89482868]
[1748141554878,0.35009368,107580.0,107570.0,0.93142868]
[1748141557319,0.35009368,107580.0,107570.0,0.44049844]
[1748141557528,0.35009368,107580.0,107570.0,0.79585844]
[1748141558398,0.35009368,107580.0,107570.0,1.07401844]
[1748141559124,0.35009368,107580.0,107570.0,0.40389844]
[1748141559240,0.35009368,107580.0,107570.0,0.68205844]
[1748141559646,0.28610701,107580.0,107570.0,0.68205844]
[1748141561568,0.036,107590.0,107570.0,0.71865844]
[1748141561771,0.375,107600.0,107580.0,1.74276718]
[1748141561985,0.46454556,107600.0,107590.0,0.27816]
[1748141563114,0.0739269,107610.0,107590.0,0.5815546]
[1748141563115,0.0178,107610.0,107590.0,0.5815546]
[1748141563322,0.12454556,107610.0,107590.0,0.5815546]
[1748141563542,0.0172,107600.0,107590.0,0.5815546]
[1748141563727,0.037,107600.0,107590.0,0.5815546]
[1748141563921,0.037,107600.0,107590.0,0.59039206]
[1748141567619,0.037,107600.0,107590.0,1.50191206]
[1748141567868,0.037,107600.0,107590.0,0.94571206]
[1748141569831,0.037,107600.0,107590.0,0.59039206]
[1748141575044,0.037,107600.0,107590.0,1.37768506]
[1748141576972,0.037,107600.0,107590.0,1.29441306]
[1748141577508,0.037,107600.0,107590.0,1.85057306]
[1748141577722,0.037,107600.0,107590.0,1.68557612]
[1748141578963,0.037,107600.0,107590.0,1.96369612]
[1748141579741,0.037,107600.0,107590.0,1.05249612]
[1748141580194,0.037,107600.0,107590.0,1.00760312]
[1748141581782,0.037,107600.0,107590.0,1.2492528]
[1748141582814,0.037,107600.0,107590.0,1.1599318]
[1748141587648,0.037,107600.0,107590.0,2.0711318]
[1748141588771,0.037,107600.0,107590.0,1.5149718]
[1748141589409,0.037,107600.0,107590.0,1.1599318]
[1748141591180,0.12654556,107600.0,107590.0,0.54543346]
[1748141591383,0.7697129,107600.0,107590.0,0.00883746]
[1748141591596,0.7697129,107600.0,107590.0,0.28691746]
[1748141591950,0.78425375,107600.0,107590.0,0.28691746]
[1748141592575,0.78425375,107600.0,107590.0,0.27808]
[1748141593738,0.78439211,107600.0,107590.0,0.27808]
[1748141597476,0.78439211,107600.0,107590.0,0.83424]
[1748141597682,0.78439211,107600.0,107590.0,1.18928]
[1748141597908,0.78439211,107600.0,107590.0,0.63312]
[1748141598544,0.34,107590.0,107570.0,0.001]
[1748141598785,0.09130479,107580.0,107570.0,0.001]
[1748141599002,0.09130479,107580.0,107570.0,0.51898109]
[1748141599190,0.09130479,107580.0,107570.0,0.54805609]
[1748141599456,0.09130479,107580.0,107570.0,0.54705609]
[1748141599872,0.09130479,107580.0,107570.0,0.54805609]
[1748141600407,0.09130479,107580.0,107570.0,0.54905609]
[1748141602108,0.08954556,107580.0,107570.0,0.54905609]
[1748141602773,0.3594,107600.0,107580.0,0.0372]
[1748141603009,0.42954556,107600.0,107590.0,0.27812]
[1748141603584,0.08954556,107600.0,107590.0,0.27812]
[1748141603820,0.08954556,107600.0,107590.0,0.31532]
[1748141604368,0.08954556,107600.0,107590.0,0.954653]
[1748141604569,0.08954556,107600.0,107590.0,0.86902]
[1748141604770,0.08954556,107600.0,107590.0,0.90522]
[1748141605450,0.09154556,107600.0,107590.0,0.90522]
[1748141605858,0.09154556,107600.0,107590.0,0.9140545]
[1748141606825,0.09154556,107600.0,107590.0,0.8778545]
[1748141607000,0.09154556,107600.0,107590.0,0.8412445]
[1748141607666,0.09154556,107600.0,107590.0,1.7522045]
[1748141611174,0.09154556,107600.0,107590.0,1.1960045]
[1748141613061,0.09154556,107600.0,107590.0,0.5631245]
[1748141613189,0.09154556,107600.0,107590.0,0.8412445]
[1748141614654,0.09154556,107600.0,107590.0,0.0088345]
[1748141614834,0.12944556,107600.0,107590.0,0.4798915]
[1748141615034,0.12944556,107600.0,107590.0,0.3940315]
[1748141617653,0.12944556,107600.0,107590.0,1.3049515]
[1748141619742,0.12944556,107600.0,107590.0,1.60814924]
[1748141621266,0.12944556,107600.0,107590.0,1.05198924]
[1748141623179,0.12944556,107600.0,107590.0,0.69722924]
[1748141627536,0.12944556,107600.0,107590.0,1.60814924]
[1748141628672,0.09154556,107600.0,107590.0,1.60814924]
[1748141629354,0.09154556,107600.0,107590.0,0.69722924]
[1748141633491,0.09154556,107600.0,107590.0,0.41914924]
[1748141633663,0.09154556,107600.0,107590.0,0.69722924]
[1748141635264,0.09154556,107600.0,107590.0,0.3940315]
[1748141635461,0.09154556,107600.0,107590.0,0.69722924]
[1748141637484,0.09154556,107600.0,107590.0,1.01882698]
[1748141637696,0.002,107600.0,107590.0,1.42096886]
[1748141637910,0.002,107600.0,107590.0,1.43876886]
[1748141638124,0.002,107600.0,107590.0,1.4498678]
[1748141639188,0.01855923,107620.0,107590.0,1.09900818]
[1748141639346,0.125149,107620.0,107610.0,0.30319774]
[1748141639554,0.125149,107620.0,107610.0,0.93575774]
[1748141639736,0.125149,107620.0,107610.0,0.58127774]
[1748141639936,0.125149,107620.0,107610.0,0.27808]
[1748141640337,0.125149,107620.0,107610.0,0.2869145]
[1748141640773,0.128149,107620.0,107610.0,0.2869145]
[1748141642878,0.128149,107620.0,107610.0,0.27808]
[1748141643079,0.128149,107620.0,107610.0,0.605794]
[1748141643520,0.128149,107620.0,107610.0,0.413062]
[1748141643861,0.128149,107620.0,107610.0,0.42717978]
[1748141645092,0.128149,107620.0,107610.0,0.43601666]
[1748141645422,0.093049,107620.0,107610.0,0.43601666]
[1748141645560,0.093049,107620.0,107610.0,0.7392144]
[1748141645777,0.087819,107620.0,107610.0,0.7392144]
[1748141646747,0.087819,107620.0,107610.0,0.7754144]
[1748141647502,0.087819,107620.0,107610.0,1.1298544]
[1748141648338,0.087819,107620.0,107610.0,0.7754144]
[1748141648339,0.00350344,107620.0,107610.0,0.7754144]
[1748141648864,0.00350344,107620.0,107610.0,1.07861214]
[1748141649055,0.00050344,107620.0,107610.0,1.07861214]
[1748141649589,0.00050344,107620.0,107610.0,1.08971108]
[1748141649590,0.00250344,107620.0,107610.0,1.08971108]
[1748141649797,0.00050344,107620.0,107610.0,1.0892029]
[1748141650595,0.00050344,107620.0,107610.0,1.07910396]
[1748141651234,0.00050344,107620.0,107610.0,1.50864952]
[1748141652748,0.00050344,107620.0,107610.0,1.51974846]
[1748141652923,0.00050344,107620.0,107610.0,0.91386116]
[1748141653125,0.00050344,107620.0,107610.0,1.51974846]
[1748141653868,0.00050344,107620.0,107610.0,1.51874846]
[1748141654004,0.01,107630.0,107610.0,1.48254846]
[1748141654211,0.01015097,107630.0,107620.0,3.06792057]
[1748141654405,0.01015097,107630.0,107620.0,3.06559821]
[1748141654649,0.01015097,107630.0,107620.0,3.07443509]
[1748141655169,0.00033551,107640.0,107630.0,0.0331]
[1748141655318,0.00033551,107640.0,107630.0,0.61640588]
[1748141655516,0.00033551,107640.0,107630.0,3.25239265]
[1748141656003,0.00033551,107640.0,107630.0,3.26122953]
[1748141657515,0.00033551,107640.0,107630.0,4.17158953]
[1748141659005,0.00033551,107640.0,107630.0,3.65371874]
[1748141659380,0.00033551,107640.0,107630.0,3.67756583]
[1748141659954,0.0335888,107670.0,107630.0,4.00828062]
[1748141660160,0.05013971,107670.0,107660.0,0.30294365]
[1748141660370,0.01643971,107670.0,107660.0,3.25425265]
[1748141660579,0.02,107700.0,107660.0,3.25425265]
[1748141660792,0.12324556,107690.0,107670.0,2.64063053]
[1748141661014,0.0337,107690.0,107680.0,1.610001]
[1748141661429,0.0337,107690.0,107680.0,0.626812]
[1748141661637,0.0337,107690.0,107680.0,0.454328]
[1748141662453,0.0337,107690.0,107680.0,0.46847507]
[1748141663260,0.0347,107690.0,107680.0,0.46847507]
[1748141663622,0.0347,107690.0,107680.0,0.01054028]
[1748141664039,0.0347,107690.0,107680.0,0.48265228]
[1748141664257,0.0347,107690.0,107680.0,0.36563728]
[1748141664996,0.0347,107690.0,107680.0,0.64359728]
[1748141666453,0.0347,107690.0,107680.0,0.59512028]
[1748141666571,0.0347,107690.0,107680.0,0.58451228]
[1748141666777,0.0347,107690.0,107680.0,0.59838973]
[1748141667551,0.0347,107690.0,107680.0,1.50946973]
[1748141668323,0.0347,107690.0,107680.0,0.95366973]
[1748141668540,0.0347,107690.0,107680.0,0.79403073]
[1748141670285,0.0347,107690.0,107680.0,0.43875073]
[1748141671458,0.001,107690.0,107680.0,0.74169438]
[1748141672660,0.001,107690.0,107680.0,0.77709438]
[1748141673511,0.001,107690.0,107680.0,0.86663994]
[1748141673905,0.02,107700.0,107680.0,0.86663994]
[1748141674105,0.02,107700.0,107690.0,2.35997365]
[1748141674734,0.02,107700.0,107690.0,2.38378844]
[1748141677060,0.03365089,107710.0,107700.0,0.27788]
[1748141677414,0.03365089,107710.0,107700.0,0.43348]
[1748141677614,0.03365089,107710.0,107700.0,1.18876]
[1748141678826,0.03665089,107710.0,107700.0,1.18876]
[1748141679916,0.03665089,107710.0,107680.0,0.14776329]
[1748141680085,0.3956401,107710.0,107680.0,0.02441773]
[1748141680260,0.08954556,107700.0,107690.0,0.27784]
[1748141680466,0.09130479,107700.0,107690.0,0.27784]
[1748141680799,0.0346,107700.0,107690.0,0.58078365]
[1748141681115,0.03775089,107710.0,107690.0,1.96030665]
[1748141681341,0.12729645,107710.0,107690.0,0.58078365]
[1748141681749,0.03775089,107710.0,107690.0,0.58078365]
[1748141681901,0.03775089,107710.0,107690.0,0.05979284]
[1748141681902,0.03475089,107710.0,107690.0,0.05979284]
[1748141682102,0.03475089,107710.0,107690.0,0.33714365]
[1748141682529,0.03475089,107710.0,107690.0,0.30294365]
[1748141682740,0.03575089,107710.0,107690.0,0.30294365]
[1748141682915,0.03575089,107710.0,107680.0,0.05861773]
[1748141683119,0.03575089,107710.0,107690.0,2.32662365]
[1748141683317,0.03575089,107710.0,107690.0,0.58078365]
[1748141685150,0.03575089,107710.0,107700.0,0.208817]